fUST/lending_fUST_20240203
["ID","MTS","AMOUNT","RATE_DAILY","PERIOD"]
[313215445,1706962239038,-500.0,0.00027396,2]
[313215446,1706962239048,-500.0,0.00027396,2]
[313215447,1706962239058,-388.58437497,0.00027396,2]
[313215448,1706962239068,-332.96726867,0.00027396,2]
[313215449,1706962239077,-500.0,0.00027396,2]
[313215450,1706962239087,-500.0,0.00027396,2]
[313215451,1706962239096,-500.0,0.00027396,2]
[313215452,1706962239105,-383.14651293,0.00027396,2]
[313215453,1706962239116,-500.0,0.00027396,2]
[313215454,1706962239124,-500.0,0.00027396,2]
[313215455,1706962239134,-500.0,0.00027396,2]
[313215456,1706962239143,-500.0,0.00027396,2]
[313215457,1706962239153,-500.0,0.00027396,2]
[313215458,1706962239162,-500.0,0.00027396,2]
[313215459,1706962239171,-500.0,0.00027396,2]
[313215460,1706962239181,-500.0,0.00027396,2]
[313215461,1706962239190,-500.0,0.00027396,2]
[313215462,1706962239199,-500.0,0.00027396,2]
[313215463,1706962239209,-500.0,0.00027396,2]
[313215464,1706962239219,-500.0,0.00027396,2]
[313215465,1706962239229,-391.0,0.00027396,2]
[313215466,1706962239239,-500.0,0.00027396,2]
[313215467,1706962239249,-500.0,0.00027396,2]
[313215468,1706962239260,-500.0,0.00027396,2]
[313215469,1706962239269,-500.0,0.00027396,2]
[313215470,1706962239278,-500.0,0.00027396,2]
[313215471,1706962239288,-500.0,0.00027396,2]
[313215472,1706962239298,-500.0,0.00027396,2]
[313215473,1706962239307,-500.0,0.00027396,2]
[313215474,1706962239316,-500.0,0.00027396,2]
[313215475,1706962239326,-500.0,0.00027397,2]
[313215476,1706962239335,-505.91505518,0.00027397,2]
[313215477,1706962239345,-500.0,0.00027397,2]
[313215478,1706962239355,-500.0,0.00027397,2]
[313215479,1706962239365,-500.0,0.00027397,2]
[313215480,1706962239374,-500.0,0.00027397,2]
[313215481,1706962239383,-503.63711727,0.00027397,2]
[313215482,1706962239393,-500.0,0.00027397,2]
[313215483,1706962239402,-500.0,0.00027397,2]
[313215484,1706962239411,-516.25072468,0.00027397,2]
[313215485,1706962239421,-503.75418424,0.00027397,2]
[313215486,1706962239430,-301.93124772,0.00027397,2]
[313215487,1706962239440,-505.61402559,0.00027397,7]
[313215488,1706962239450,-308.37268485,0.00027397,2]
[313215489,1706962239459,-500.0,0.00027397,2]
[313215490,1706962239468,-503.93231267,0.00027397,2]
[313215491,1706962239478,-500.0,0.00027397,2]
[313215492,1706962239487,-500.0,0.00027397,2]
[313215493,1706962239496,-500.0,0.00027397,2]
[313215494,1706962239505,-500.0,0.00027397,2]
[313215495,1706962239514,-500.0,0.00027397,2]
[313215496,1706962239524,-505.88117629,0.00027397,2]
[313215497,1706962239533,-508.84074128,0.00027397,2]
[313215498,1706962239543,-504.62288054,0.00027397,2]
[313215499,1706962239552,-500.0,0.00027397,2]
[313215500,1706962239561,-513.93419891,0.00027397,2]
[313215501,1706962239570,-503.81745858,0.00027397,2]
[313215502,1706962239709,-501.56367019,0.00027397,2]
[313215503,1706962239718,-500.0,0.00027397,2]
[313215504,1706962239728,-500.0,0.00027397,2]
[313215505,1706962239737,-500.0,0.00027397,2]
[313215506,1706962239746,-525.34101276,0.00027397,2]
[313215507,1706962239756,-500.0,0.00027397,2]
[313215508,1706962239766,-500.0,0.00027397,2]
[313215509,1706962239775,-500.0,0.00027397,2]
[313215510,1706962239784,-552.69410233,0.00027397,2]
[313215511,1706962239793,-500.0,0.00027397,2]
[313215512,1706962239802,-500.0,0.00027397,2]
[313215513,1706962239811,-500.0,0.00027397,2]
[313215514,1706962239820,-3768.78,0.00027397,2]
[313215515,1706962239830,-500.0,0.00027397,2]
[313215516,1706962239839,-500.0,0.00027397,2]
[313215517,1706962239849,-829.4,0.00027397,2]
[313215518,1706962239858,-549.97,0.00027397,2]
[313215519,1706962239866,-500.0,0.00027397,2]
[313215520,1706962239875,-944.45,0.00027397,2]
[313215521,1706962239884,-547.94,0.00027397,2]
[313215522,1706962239893,-500.0,0.00027397,2]
[313215523,1706962239902,-500.0,0.00027397,2]
[313215524,1706962239911,-474.96707827,0.00027397,2]
[313215525,1706962239920,-500.0,0.00027397,2]
[313215526,1706962239930,-500.0,0.00027397,2]
[313215527,1706962239939,-500.0,0.00027397,2]
[313215528,1706962239948,-500.0,0.00027397,2]
[313215529,1706962239958,-500.0,0.00027397,2]
[313215530,1706962239968,-500.0,0.00027397,2]
[313215531,1706962239979,-500.0,0.00027397,2]
[313215532,1706962239989,-504.73072043,0.00027397,2]
[313215533,1706962239999,-858.28,0.00027397,2]
[313215534,1706962240008,-500.0,0.00027397,2]
[313215535,1706962240019,-500.0,0.00027397,2]
[313215536,1706962240028,-500.0,0.00027397,2]
[313215537,1706962240037,-500.0,0.00027397,2]
[313215538,1706962240048,-624.15640998,0.00027397,2]
[313215539,1706962240057,-500.0,0.00027397,2]
[313215540,1706962240066,-500.0,0.00027397,2]
[313215541,1706962240076,-1597.49,0.00027397,2]
[313215542,1706962240085,-500.0,0.00027397,2]
[313215543,1706962240096,-501.37259724,0.00027397,2]
[313215544,1706962240105,-500.0,0.00027397,2]
[313215545,1706962240114,-500.0,0.00027397,2]
[313215546,1706962240123,-500.0,0.00027397,2]
[313215547,1706962240132,-1505.1,0.00027397,2]
[313215548,1706962240142,-500.0,0.00027397,2]
[313215549,1706962240151,-500.0,0.00027397,2]
[313215550,1706962240159,-500.0,0.00027397,2]
[313215551,1706962240168,-500.49854135,0.00027397,2]
[313215552,1706962240178,-2022.22,0.00027397,2]
[313215553,1706962240186,-500.0,0.00027397,2]
[313215554,1706962240195,-500.0,0.00027397,2]
[313215555,1706962240204,-500.0,0.00027397,2]
[313215556,1706962240213,-13623.11,0.00027397,2]
[313215557,1706962240222,-163.16785423,0.00027397,2]
[313215558,1706962240230,-500.0,0.00027397,2]
[313215559,1706962240239,-500.0,0.00027397,2]
[313215560,1706962240248,-3208.63,0.00027397,2]
[313215561,1706962240257,-515.99079095,0.00027397,2]
[313215562,1706962240266,-500.0,0.00027671,2]
[313215563,1706962240276,-500.0,0.00027671,2]
[313215564,1706962240285,-500.0,0.00027671,2]
[313215565,1706962240295,-500.0,0.00027671,2]
[313215566,1706962240304,-500.0,0.00027671,2]
[313215567,1706962240314,-500.0,0.00027671,2]
[313215568,1706962240323,-500.0,0.00027671,2]
[313215569,1706962240332,-500.0,0.00027671,2]
[313215570,1706962240342,-500.0,0.00027671,2]
[313215571,1706962240351,-500.0,0.00027671,2]
[313215572,1706962240360,-500.0,0.00027671,2]
[313215573,1706962240369,-500.0,0.00027671,2]
[313215574,1706962240378,-500.0,0.00027671,2]
[313215575,1706962240388,-500.0,0.00027671,2]
[313215576,1706962240397,-500.0,0.00027671,2]
[313215577,1706962240406,-3768.78,0.00027671,2]
[313215578,1706962240415,-500.0,0.00027671,2]
[313215579,1706962240425,-500.0,0.00027671,2]
[313215580,1706962240434,-829.4,0.00027671,2]
[313215581,1706962240443,-549.97,0.00027671,2]
[313215582,1706962240452,-500.0,0.00027671,2]
[313215583,1706962240462,-944.45,0.00027671,2]
[313215584,1706962240471,-547.94,0.00027671,2]
[313215585,1706962240481,-500.0,0.00027671,2]
[313215586,1706962240491,-500.0,0.00027671,2]
[313215587,1706962240500,-500.0,0.00027671,2]
[313215588,1706962240510,-500.0,0.00027671,2]
[313215589,1706962240518,-500.0,0.00027671,2]
[313215590,1706962240528,-500.0,0.00027671,2]
[313215591,1706962240537,-500.0,0.00027671,2]
[313215592,1706962240546,-858.28,0.00027671,2]
[313215593,1706962240555,-500.0,0.00027671,2]
[313215595,1706962240564,-500.0,0.00027671,2]
[313215597,1706962240573,-500.0,0.00027671,2]
[313215598,1706962240583,-500.0,0.00027671,2]
[313215599,1706962240592,-500.0,0.00027671,2]
[313215601,1706962240602,-1597.49,0.00027671,2]
[313215603,1706962240611,-500.0,0.00027671,2]
[313215605,1706962240621,-500.0,0.00027671,2]
[313215606,1706962240630,-500.0,0.00027671,2]
[313215607,1706962240639,-500.0,0.00027671,2]
[313215608,1706962240648,-1505.1,0.00027671,2]
[313215610,1706962240657,-500.0,0.00027671,2]
[313215611,1706962240666,-500.0,0.00027671,2]
[313215612,1706962240676,-500.0,0.00027671,2]
[313215613,1706962240685,-2022.22,0.00027671,2]
[313215614,1706962240694,-500.0,0.00027671,2]
[313215615,1706962240703,-500.0,0.00027671,2]
[313215616,1706962240713,-637.88884278,0.00027671,2]
[313215617,1706962240722,-13623.11,0.00027671,2]
[313215618,1706962240731,-500.0,0.00027671,2]
[313215619,1706962240742,-500.0,0.00027671,2]
[313215620,1706962240751,-3208.63,0.00027671,2]
[313215621,1706962240760,-3000.0,0.000277,4]
[313215622,1706962240769,-500.0,0.00027945,2]
[313215623,1706962240778,-500.0,0.00027945,2]
[313215624,1706962240787,-500.0,0.00027945,2]
[313215625,1706962240796,-500.0,0.00027945,2]
[313215626,1706962240805,-500.0,0.00027945,2]
[313215627,1706962240814,-500.0,0.00027945,2]
[313215628,1706962240823,-500.0,0.00027945,2]
[313215629,1706962240832,-500.0,0.00027945,2]
[313215630,1706962240842,-500.0,0.00027945,2]
[313215631,1706962240853,-500.0,0.00027945,2]
[313215632,1706962240862,-3768.78,0.00027945,2]
[313215633,1706962240871,-500.0,0.00027945,2]
[313215634,1706962240881,-829.4,0.00027945,2]
[313215635,1706962240890,-549.97,0.00027945,2]
[313215636,1706962240899,-500.0,0.00027945,2]
[313215637,1706962240908,-944.45,0.00027945,2]
[313215638,1706962240918,-547.94,0.00027945,2]
[313215639,1706962240927,-500.0,0.00027945,2]
[313215640,1706962240935,-500.0,0.00027945,2]
[313215641,1706962240944,-500.0,0.00027945,2]
[313215642,1706962240953,-500.0,0.00027945,2]
[313215643,1706962240963,-500.0,0.00027945,2]
[313215644,1706962240975,-858.28,0.00027945,2]
[313215645,1706962240984,-486.99104266,0.00027945,2]
[313215646,1706962240993,-500.0,0.00027945,2]
[313215647,1706962241002,-500.0,0.00027945,2]
[313215648,1706962241011,-500.0,0.00027945,2]
[313215649,1706962241021,-1597.49,0.00027945,2]
[313215650,1706962241030,-500.0,0.00027945,2]
[313215651,1706962241040,-500.0,0.00027945,2]
[313215652,1706962241049,-500.0,0.00027945,2]
[313215653,1706962241060,-1505.1,0.00027945,2]
[313215654,1706962241069,-500.0,0.00027945,2]
[313215655,1706962241078,-500.0,0.00027945,2]
[313215656,1706962241088,-2022.22,0.00027945,2]
[313215657,1706962241097,-500.0,0.00027945,2]
[313215658,1706962241106,-500.0,0.00027945,2]
[313215659,1706962241115,-13623.11,0.00027945,2]
[313215660,1706962241124,-500.0,0.00027945,2]
[313215661,1706962241133,-3208.63,0.00027945,2]
[313215662,1706962241142,-64929.49941037,0.00028,2]
[313215663,1706962241152,-600.0,0.00028,2]
[313215664,1706962241161,-459.92906339,0.00028,3]
[313215665,1706962241170,-51099.57217898,0.00028,2]
[313215666,1706962241180,-319.02827312,0.00028015,2]
[313215667,1706962241189,-26672.88718647,0.00028115,2]
[313215668,1706962241199,-259.0506465,0.00028219,3]
[313215669,1706962241208,-500.0,0.00028219,2]
[313215670,1706962241217,-574.18868617,0.00028219,2]
[313215671,1706962241227,-500.0,0.00028219,2]
[313215672,1706962241236,-500.0,0.00028219,2]
[313215673,1706962241245,-500.0,0.00028219,2]
[313215674,1706962241254,-500.0,0.00028219,2]
[313215675,1706962241263,-500.0,0.00028219,2]
[313215676,1706962241273,-500.0,0.00028219,2]
[313215678,1706962241282,-500.0,0.00028219,2]
[313215680,1706962241291,-3768.78,0.00028219,2]
[313215681,1706962241300,-500.0,0.00028219,2]
[313215683,1706962241309,-829.4,0.00028219,2]
[313215686,1706962241319,-549.97,0.00028219,2]
[313215687,1706962241328,-944.45,0.00028219,2]
[313215689,1706962241338,-547.94,0.00028219,2]
[313215692,1706962241347,-452.68648476,0.00028219,2]
[313215694,1706962241356,-500.0,0.00028219,2]
[313215696,1706962241365,-500.0,0.00028219,2]
[313215698,1706962241375,-500.0,0.00028219,2]
[313215700,1706962241384,-500.0,0.00028219,2]
[313215701,1706962241393,-858.28,0.00028219,2]
[313215703,1706962241403,-500.0,0.00028219,2]
[313215705,1706962241412,-510.96694724,0.00028219,2]
[313215707,1706962241422,-500.0,0.00028219,2]
[313215710,1706962241431,-1597.49,0.00028219,2]
[313215711,1706962241440,-500.0,0.00028219,2]
[313215714,1706962241450,-500.0,0.00028219,2]
[313215716,1706962241460,-500.0,0.00028219,2]
[313215718,1706962241468,-1505.1,0.00028219,2]
[313215720,1706962241478,-500.0,0.00028219,2]
[313215721,1706962241486,-2022.22,0.00028219,2]
[313215724,1706962241496,-316.44854787,0.00028219,2]
[313215726,1706962241505,-500.0,0.00028219,2]
[313215727,1706962241516,-13623.11,0.00028219,2]
[313215730,1706962241525,-500.0,0.00028219,2]
[313215732,1706962241535,-3208.63,0.00028219,2]
[313215734,1706962241544,-156.5099535,0.00028219,2]
[313215735,1706962241553,-153.0,0.00028219,2]
[313215737,1706962241562,-153.0,0.00028219,2]
[313215739,1706962241572,-155.0,0.00028315,2]
[313215741,1706962241581,-280.0,0.00028339,15]
[313215743,1706962241591,-1229.45150893,0.00028403,5]
[313215752,1706962241657,-3770.54849107,0.00028403,5]
[313215754,1706962241666,-151.62994439,0.00028456,4]
[313215756,1706962241675,-106.67030486,0.00028493,2]
[313215759,1706962241700,-7651.81,0.0002709,3]
[313215761,1706962241709,-393.32969514,0.00028493,2]
[313215763,1706962241718,-546.64324208,0.00028493,2]
[313215765,1706962241727,-500.0,0.00028493,2]
[313215767,1706962241736,-3768.78,0.00028493,2]
[313215770,1706962241746,-77.38491406,0.00028493,2]
[313215839,1706962243408,-183.208202,0.0002684,2]
[313215840,1706962243417,-724.41252907,0.00028493,2]
[313216078,1706962246491,-155.02015262,0.00024656,4]
[313216079,1706962246501,-432.16430821,0.00027397,2]
[313216080,1706962246510,-648.71942991,0.00027397,2]
[313216097,1706962516645,219.95,0.00029,30]
[313216108,1706962737179,276.99964977,0.00029,30]
[313216176,1706963432562,-155.02015262,0.00025128,4]
[313216177,1706963432572,-1486.85751127,0.00025128,2]
[313216179,1706963432581,-1017.12321481,0.00025129,2]
[313216180,1706963432591,-1080.57797892,0.0002513,2]
[313216182,1706963432600,-1080.57797892,0.0002513,2]
[313216184,1706963432610,-1080.57797892,0.0002513,2]
[313216186,1706963432618,-1080.57797892,0.0002513,2]
[313216188,1706963432628,-1080.57797892,0.0002513,2]
[313216190,1706963432637,-5358.6614955,0.00025221,2]
[313216192,1706963432646,-169.158929,0.00025251,2]
[313216194,1706963432655,-5836.13341956,0.00025257,2]
[313216196,1706963432665,-1074.967201,0.00025268,2]
[313216198,1706963432674,-565.48572627,0.00025268,2]
[313216200,1706963432683,-508.48199731,0.00025268,2]
[313216202,1706963432693,-1659.13705612,0.00025996,2]
[313216204,1706963432702,-421.1,0.00026098,2]
[313216206,1706963432711,-692.55475224,0.00026098,5]
[313216208,1706963432720,-979.58945662,0.00026098,2]
[313216210,1706963432730,-2421.73280327,0.00026119,2]
[313216211,1706963432739,-5000.0,0.00026573,5]
[313216212,1706963432748,-620.01102247,0.0002673,2]
[313216213,1706963432757,-3314.88451487,0.00026847,2]
[313216214,1706963432766,-396.66740215,0.00027,2]
[313216215,1706963432775,-178.82297032,0.00027297,2]
[313216216,1706963432785,-727.89974759,0.0002736,4]
[313216217,1706963432794,-4499.59,0.00027387,3]
[313216218,1706963432803,-155.20961041,0.00027396,2]
[313216219,1706963432812,-500.0,0.00027397,2]
[313216220,1706963432821,-500.0,0.00027397,2]
[313216221,1706963432830,-500.0,0.00027397,2]
[313216222,1706963432839,-500.0,0.00027397,2]
[313216223,1706963432848,-500.0,0.00027397,2]
[313216224,1706963432857,-500.0,0.00027397,2]
[313216225,1706963432866,-500.0,0.00027397,2]
[313216226,1706963432875,-500.0,0.00027397,2]
[313216227,1706963432885,-500.0,0.00027397,2]
[313216228,1706963432894,-320.28093465,0.00027397,2]
[313216229,1706963432903,-505.61619828,0.00027397,2]
[313216230,1706963432912,-505.47567208,0.00027397,2]
[313216231,1706963432922,-500.0,0.00027397,2]
[313216232,1706963432931,-503.37405009,0.00027397,2]
[313216233,1706963432940,-500.0,0.00027397,2]
[313216234,1706963432949,-500.0,0.00027397,2]
[313216235,1706963432958,-515.99079095,0.00027397,2]
[313216236,1706963432967,-240.43038265,0.00027397,2]
[313216237,1706963432976,-505.95287227,0.00027397,2]
[313216238,1706963432985,-501.95979755,0.00027397,2]
[313216239,1706963432994,-500.0,0.00027397,2]
[313216240,1706963433003,-530.44382497,0.00027397,2]
[313216241,1706963433012,-509.16728415,0.00027397,2]
[313216242,1706963433021,-500.0,0.00027397,2]
[313216243,1706963433029,-500.0,0.00027397,2]
[313216244,1706963433039,-180.9410393,0.00027397,2]
[313216245,1706963433048,-500.0,0.00027397,2]
[313216246,1706963433058,-500.0,0.00027397,2]
[313216247,1706963433068,-372.95353061,0.00027397,2]
[313216248,1706963433077,-500.0,0.00027397,2]
[313216249,1706963433087,-500.0,0.00027397,2]
[313216250,1706963433097,-500.0,0.00027397,2]
[313216251,1706963433106,-500.0,0.00027397,2]
[313216252,1706963433115,-550.97,0.00027397,2]
[313216253,1706963433124,-861.88,0.00027397,2]
[313216254,1706963433134,-500.0,0.00027397,2]
[313216255,1706963433143,-946.16,0.00027397,2]
[313216256,1706963433152,-548.93,0.00027397,2]
[313216257,1706963433161,-500.0,0.00027397,2]
[313216258,1706963433170,-500.0,0.00027397,2]
[313216259,1706963433179,-500.0,0.00027397,2]
[313216260,1706963433188,-500.0,0.00027397,2]
[313216261,1706963433198,-500.0,0.00027397,2]
[313216262,1706963433206,-500.0,0.00027397,2]
[313216263,1706963433215,-500.0,0.00027397,2]
[313216264,1706963433224,-916.43,0.00027397,2]
[313216265,1706963433233,-500.0,0.00027397,2]
[313216266,1706963433244,-500.0,0.00027397,2]
[313216267,1706963433254,-500.0,0.00027397,2]
[313216268,1706963433264,-500.0,0.00027397,2]
[313216269,1706963433274,-624.15640998,0.00027397,2]
[313216270,1706963433284,-1767.15,0.00027397,2]
[313216271,1706963433294,-500.0,0.00027397,2]
[313216272,1706963433303,-500.0,0.00027397,2]
[313216273,1706963433312,-176.33972775,0.00027397,2]
[313216274,1706963433322,-500.0,0.00027397,2]
[313216275,1706963433331,-500.0,0.00027397,2]
[313216276,1706963433340,-1570.53,0.00027397,2]
[313216277,1706963433352,-500.49854135,0.00027397,2]
[313216278,1706963433361,-500.0,0.00027397,2]
[313216279,1706963433371,-500.0,0.00027397,2]
[313216280,1706963433380,-500.0,0.00027397,2]
[313216281,1706963433390,-2110.14,0.00027397,2]
[313216282,1706963433399,-500.0,0.00027397,2]
[313216283,1706963433408,-7806.07626735,0.00027397,2]
[313216315,1706963438642,-6873.11373265,0.00027397,2]
[313216317,1706963438652,-500.0,0.00027397,2]
[313216319,1706963438661,-500.0,0.00027397,2]
[313216320,1706963438671,-163.16785423,0.00027397,2]
[313216321,1706963438680,-500.0,0.00027397,2]
[313216322,1706963438689,-500.0,0.00027397,2]
[313216324,1706963438698,-500.0,0.00027397,2]
[313216327,1706963438708,-500.0,0.00027397,2]
[313216329,1706963438717,-2489.08286579,0.00027397,2]
[313216331,1706963438729,-1426.15713421,0.00027397,2]
[313216333,1706963438738,-3288.94395265,0.00027397,2]
[313216335,1706963438749,-65.53604735,0.00027397,2]
[313216337,1706963438759,-500.0,0.00027397,2]
[313216339,1706963438768,-150.247468,0.00027397,2]
[313216341,1706963438777,-155.0,0.00027493,2]
[313216343,1706963438787,-600.0,0.000275,2]
[313216345,1706963438796,-200.0,0.00027656,15]
[313216347,1706963438805,-500.0,0.00027671,2]
[313216349,1706963438814,-500.0,0.00027671,2]
[313216351,1706963438823,-43.78636215,0.00027671,2]
[313216422,1706963441852,-550.93,0.00027397,2]
[313216423,1706963441861,-245.75675793,0.00027671,2]
[313216424,1706963441873,-197.44792258,0.00027671,2]
[313216425,1706963441883,-500.0,0.00027671,2]
[313216426,1706963441893,-500.0,0.00027671,2]
[313216427,1706963441902,-500.0,0.00027671,2]
[313216428,1706963441912,-500.0,0.00027671,2]
[313216429,1706963441921,-500.0,0.00027671,2]
[313216430,1706963441931,-500.0,0.00027671,2]
[313216431,1706963441940,-500.0,0.00027671,2]
[313216432,1706963441949,-500.0,0.00027671,2]
[313216433,1706963441958,-500.0,0.00027671,2]
[313216434,1706963441968,-500.0,0.00027671,2]
[313216435,1706963441977,-861.88,0.00027671,2]
[313216436,1706963441986,-500.0,0.00027671,2]
[313216437,1706963441995,-946.16,0.00027671,2]
[313216439,1706963442005,-548.93,0.00027671,2]
[313216440,1706963442014,-500.0,0.00027671,2]
[313216441,1706963442025,-500.0,0.00027671,2]
[313216442,1706963442036,-500.0,0.00027671,2]
[313216443,1706963442045,-500.0,0.00027671,2]
[313216444,1706963442054,-500.0,0.00027671,2]
[313216445,1706963442063,-500.0,0.00027671,2]
[313216446,1706963442072,-500.0,0.00027671,2]
[313216447,1706963442081,-916.43,0.00027671,2]
[313216448,1706963442090,-500.0,0.00027671,2]
[313216449,1706963442099,-500.0,0.00027671,2]
[313216450,1706963442109,-500.0,0.00027671,2]
[313216451,1706963442118,-1767.15,0.00027671,2]
[313216452,1706963442127,-500.0,0.00027671,2]
[313216453,1706963442136,-500.0,0.00027671,2]
[313216454,1706963442145,-500.0,0.00027671,2]
[313216455,1706963442154,-1570.53,0.00027671,2]
[313216456,1706963442163,-500.0,0.00027671,2]
[313216457,1706963442171,-500.0,0.00027671,2]
[313216458,1706963442181,-500.0,0.00027671,2]
[313216459,1706963442190,-2110.14,0.00027671,2]
[313216460,1706963442199,-500.0,0.00027671,2]
[313216461,1706963442209,-14679.19,0.00027671,2]
[313216462,1706963442218,-637.88884278,0.00027671,2]
[313216463,1706963442227,-500.0,0.00027671,2]
[313216464,1706963442236,-500.0,0.00027671,2]
[313216465,1706963442246,-500.0,0.00027671,2]
[313216466,1706963442255,-500.0,0.00027671,2]
[313216467,1706963442264,-3915.24,0.00027671,2]
[313216468,1706963442273,-3354.48,0.00027671,2]
[313216469,1706963442282,-550.93,0.00027671,2]
[313216470,1706963442291,-11.95937943,0.00027671,2]
[313216508,1706963446672,-421.1,0.00027397,2]
[313216638,1706964631774,-717.4770118,0.00021557,2]
[313216641,1706964631783,-500.0,0.00021557,2]
[313216643,1706964631792,-155.01860223,0.00021558,2]
[313216645,1706964631802,-680.25587459,0.00021559,2]
[313216646,1706964631812,-155.01860223,0.0002156,4]
[313216648,1706964631822,-783.41948665,0.00021561,2]
[313216697,1706964637868,-155.01860223,0.00021556,4]
[313216699,1706964637877,-83865.18058421,0.0002156,2]
[313216702,1706964637887,-233.70372816,0.00021561,2]
[313216703,1706964637897,-15651.47925234,0.00021561,2]
[313216705,1706964637907,-170.31395513,0.00021563,2]
[313216707,1706964637916,-562.98112702,0.00021663,2]
[313216709,1706964637927,-562.98112702,0.00021663,2]
[313216712,1706964637938,-562.98112702,0.00021663,2]
[313216713,1706964637947,-562.98112702,0.00021663,2]
[313216715,1706964637956,-562.98112702,0.00021663,2]
[313216718,1706964637966,-697.1372444,0.00021678,2]
[313216719,1706964637976,-166.666666,0.00021918,2]
[313216722,1706964637985,-3977.44618093,0.00022,2]
[313216724,1706964637994,-426.88835692,0.00022,2]
[313216726,1706964638003,-24900.0,0.0002224,2]
[313216727,1706964638012,-170.31395513,0.0002254,2]
[313216729,1706964638022,-9959.98060866,0.00023,2]
[313216732,1706964638031,-309.29107459,0.00023353,2]
[313216734,1706964638040,-170.31395513,0.00023517,2]
[313216736,1706964638050,-198.71456401,0.00024349,2]
[313216737,1706964638059,-200.0,0.0002445,7]
[313216740,1706964638069,-166.666666,0.00024482,2]
[313216742,1706964638079,-170.31395513,0.00024494,2]
[313216744,1706964638088,-500.0,0.00024883,2]
[313216746,1706964638097,-400.0,0.00024883,2]
[313216747,1706964638106,-500.0,0.00024883,2]
[313216749,1706964638117,-500.0,0.00024883,2]
[313216751,1706964638126,-311.37143275,0.00024883,2]
[313216753,1706964638135,-500.0,0.00024883,2]
[313216755,1706964638144,-500.0,0.00024883,2]
[313216757,1706964638153,-500.0,0.00024883,2]
[313216760,1706964638163,-500.0,0.00024883,2]
[313216761,1706964638173,-374.32229926,0.00024883,2]
[313216763,1706964638182,-500.0,0.00024883,2]
[313216766,1706964638192,-500.0,0.00024883,2]
[313216768,1706964638201,-500.0,0.00024883,2]
[313216770,1706964638210,-500.0,0.00024883,2]
[313216772,1706964638220,-500.0,0.00024883,2]
[313216773,1706964638232,-500.0,0.00024883,2]
[313216775,1706964638241,-500.0,0.00024883,2]
[313216777,1706964638250,-500.0,0.00024883,2]
[313216779,1706964638259,-500.0,0.00024883,2]
[313216781,1706964638268,-500.0,0.00024883,2]
[313216783,1706964638277,-500.0,0.00024883,2]
[313216786,1706964638287,-500.0,0.00024883,2]
[313216787,1706964638296,-500.0,0.00024883,2]
[313216790,1706964638306,-500.0,0.00024883,2]
[313216791,1706964638316,-500.0,0.00024883,2]
[313216793,1706964638326,-332.96726867,0.00024883,2]
[313216796,1706964638336,-500.0,0.00024883,2]
[313216797,1706964638348,-500.0,0.00024883,2]
[313216799,1706964638358,-500.0,0.00024883,2]
[313216801,1706964638368,-500.0,0.00024883,2]
[313216803,1706964638377,-500.0,0.00024883,2]
[313216805,1706964638386,-383.14651293,0.00024883,2]
[313216808,1706964638397,-500.0,0.00024883,2]
[313216809,1706964638406,-500.0,0.00024883,2]